bitfinex-derivatives/quotes_SOLF0:USTF0_20260310
["timestamp","ask_amount","ask_price","bid_price","bid_amount"]
[1773167297681,10.366,86.804,86.7,9.10315607]
[1773167297682,3.67537295,86.809,86.74,9.10315607]
[1773167297887,3.67537295,86.809,86.741,3.70605236]
[1773167298083,9.10315607,86.83,86.74,9.10315607]
[1773167298084,3.67537295,86.827,86.762,3.70605236]
[1773167299588,10.365,86.818,86.771,10.37]
[1773167300587,10.364,86.826,86.778,10.369]
[1773167300983,14.29402316,86.826,86.778,10.369]
[1773167301383,10.364,86.819,86.77,10.37]
[1773167302186,3.93002316,86.826,86.779,10.369]
[1773167302383,3.93002316,86.826,86.762,3.70605236]
[1773167303390,3.93002316,86.823,86.741,3.77871052]
[1773167304485,3.93002316,86.823,86.759,10.371]
[1773167304486,10.366,86.808,86.759,10.371]
[1773167305782,3.93002316,86.804,86.748,10.373]
[1773167306991,3.93002316,86.804,86.72,9.10315607]
[1773167306992,3.93002316,86.804,86.722,3.77871052]
[1773167307796,3.93002316,86.804,86.743,10.373]
[1773167308091,3.93002316,86.804,86.722,3.77871052]
[1773167308489,3.93002316,86.779,86.735,10.374]
[1773167308698,3.93002316,86.779,86.722,3.77871052]
[1773167309591,3.93002316,86.779,86.727,10.375]
[1773167310691,10.37,86.771,86.727,10.375]
[1773167311096,3.93002316,86.779,86.701,3.77871052]
[1773167311291,3.93002316,86.766,86.681,3.77871052]
[1773167311696,3.93002316,86.766,86.691,3.77871052]
[1773167312193,3.93002316,86.766,86.72,10.376]
[1773167312395,3.93002316,86.799,86.709,3.77871052]
[1773167312603,3.93002316,86.797,86.709,3.77871052]
[1773167312792,10.37,86.774,86.732,10.375]
[1773167313093,10.37,86.774,86.709,3.77871052]
[1773167313294,10.371,86.76,86.709,3.77871052]
[1773167314202,20.733,86.805,86.709,3.77871052]
[1773167314203,3.93002316,86.781,86.709,3.77871052]
[1773167314598,3.93002316,86.781,86.711,3.77871052]
[1773167315303,10.369,86.778,86.733,10.375]
[1773167316395,3.93002316,86.781,86.741,10.374]
[1773167316598,10.368,86.787,86.741,10.374]
[1773167317307,3.93002316,86.819,86.744,3.77871052]
[1773167317498,3.93002316,86.817,86.744,3.77871052]
[1773167317698,3.93002316,86.817,86.751,3.77871052]
[1773167318200,3.93002316,86.817,86.769,10.37]
[1773167318504,3.93002316,86.817,86.751,3.77871052]
[1773167318901,6.80906782,86.834,86.751,3.77871052]
[1773167319103,3.93002316,86.834,86.751,3.77871052]
[1773167319302,3.93002316,86.834,86.784,10.368]
[1773167319499,3.93002316,86.853,86.785,3.77871052]
[1773167319698,2.87904466,86.852,86.785,3.77871052]
[1773167319904,13.24004466,86.851,86.806,10.366]
[1773167320100,2.87904466,86.852,86.806,3.77871052]
[1773167320302,3.93002316,86.868,86.806,3.77871052]
[1773167320507,2.87904466,86.867,86.806,3.77871052]
[1773167320699,2.87904466,86.866,86.806,3.77871052]
[1773167320898,10.359,86.864,86.806,3.77871052]
[1773167321103,3.93002316,86.863,86.806,3.77871052]
[1773167321308,3.93002316,86.862,86.806,3.77871052]
[1773167321602,6.80906782,86.862,86.806,3.77871052]
[1773167321797,3.93002316,86.862,86.806,3.77871052]
[1773167321998,3.93002316,86.887,86.811,3.77871052]
[1773167322195,2.87904466,86.886,86.811,3.77871052]
[1773167322396,2.87904466,86.885,86.811,3.77871052]
[1773167322605,3.93002316,86.887,86.811,3.77871052]
[1773167323203,3.93002316,86.905,86.84,10.362]
[1773167323407,3.93002316,86.903,86.84,10.362]
[1773167323598,3.93002316,86.901,86.84,10.362]
[1773167323904,3.93002316,86.9,86.84,10.362]
[1773167324303,3.93002316,86.896,86.832,3.77871052]
[1773167324705,3.93002316,86.896,86.845,10.361]
[1773167324910,10.355,86.9,86.846,3.77871052]
[1773167325205,3.93002316,86.908,86.849,10.361]
[1773167326200,3.93002316,86.899,86.838,10.362]
[1773167326506,3.93002316,86.899,86.818,3.77871052]
[1773167326908,3.93002316,86.899,86.837,10.362]
[1773167327308,4.00753054,86.885,86.828,10.363]
[1773167327508,4.00753054,86.885,86.799,3.90638878]
[1773167327809,4.00753054,86.869,86.799,3.90638878]
[1773167328607,4.00753054,86.863,86.799,3.90638878]
[1773167329005,4.00753054,86.857,86.799,3.90638878]
[1773167330109,4.00753054,86.857,86.77,9.11051203]
[1773167330110,3.99140874,86.876,86.801,3.8754152]
[1773167330604,3.99140874,86.876,86.827,10.363]
[1773167331708,9.11051203,86.9,86.835,10.362]
[1773167331709,3.99140874,86.899,86.835,10.362]
[1773167331906,3.99140874,86.899,86.818,3.8754152]
[1773167331907,10.357,86.883,86.818,3.8754152]
[1773167333008,10.356,86.892,86.834,10.363]
[1773167333211,10.356,86.892,86.834,14.2384152]
[1773167334008,3.99140874,86.886,86.834,10.363]
[1773167335011,14.35040874,86.865,86.8,9.11051203]
[1773167335206,3.99140874,86.864,86.8,12.98592723]
[1773167335710,10.359,86.86,86.813,10.365]
[1773167336613,10.359,86.86,86.804,10.366]
[1773167337714,10.36,86.855,86.804,10.366]
[1773167338306,10.362,86.839,86.782,3.8754152]
[1773167338513,3.99140874,86.854,86.782,3.8754152]
[1773167339404,10.361,86.849,86.804,10.366]
[1773167340411,3.99140874,86.836,86.764,3.8754152]
[1773167341017,10.364,86.826,86.764,3.8754152]
[1773167341219,3.99140874,86.836,86.764,3.8754152]
[1773167341813,3.99140874,86.819,86.744,3.8754152]
[1773167342316,14.35640874,86.813,86.762,10.371]
[1773167342516,14.35640874,86.813,86.744,3.8754152]
[1773167342517,3.99140874,86.813,86.744,3.8754152]
[1773167343411,3.99140874,86.839,86.751,3.8754152]
[1773167343920,10.363,86.83,86.777,3.8754152]
[1773167344317,10.362,86.836,86.785,10.368]
[1773167345620,14.35340874,86.836,86.785,10.368]
[1773167345820,10.363,86.828,86.777,3.8754152]
[1773167346412,3.99140874,86.836,86.777,3.8754152]
[1773167346413,14.35340874,86.836,86.777,3.8754152]
[1773167347115,10.363,86.829,86.777,3.8754152]
[1773167347316,3.99140874,86.828,86.759,3.8754152]
[1773167347822,3.99140874,86.818,86.77,10.37]
[1773167349218,3.99140874,86.842,86.779,3.8754152]
[1773167349815,3.99140874,86.831,86.782,10.369]
[1773167350010,3.99140874,86.831,86.761,3.8754152]
[1773167350415,3.99140874,86.829,86.782,10.369]
[1773167350614,3.99140874,86.829,86.761,3.8754152]
[1773167352320,10.365,86.814,86.761,3.8754152]
[1773167352625,3.99140874,86.829,86.761,3.8754152]
[1773167353124,10.365,86.816,86.769,10.37]
[1773167353324,3.99140874,86.815,86.742,3.8754152]
[1773167353824,3.99140874,86.8,86.754,10.372]
[1773167354620,3.99140874,86.799,86.711,3.8754152]
[1773167355314,3.99140874,86.768,86.711,3.8754152]
[1773167356219,9.11051203,86.78,86.727,10.375]
[1773167356220,10.369,86.777,86.727,10.375]
[1773167356618,9.11051203,86.78,86.737,10.374]
[1773167356825,3.99140874,86.799,86.737,10.374]
[1773167357220,3.99140874,86.788,86.727,3.8754152]
[1773167358427,10.369,86.784,86.736,10.374]
[1773167359126,3.99140874,86.793,86.727,3.8754152]
[1773167359427,10.371,86.762,86.719,10.376]
[1773167359827,4.02033131,86.761,86.691,3.95636627]
[1773167360028,4.02033131,86.76,86.71,10.377]
[1773167361024,9.11051203,86.78,86.691,3.95636627]
[1773167361229,4.02033131,86.757,86.691,3.95636627]
[1773167361529,14.39233131,86.752,86.701,10.378]
[1773167361725,4.02033131,86.751,86.661,3.95636627]
[1773167362430,4.02033131,86.77,86.705,3.95636627]
[1773167362932,10.37,86.769,86.722,10.376]
[1773167363226,4.02033131,86.77,86.705,3.95636627]
[1773167363428,4.02033131,86.785,86.711,3.95636627]
[1773167364030,10.369,86.777,86.711,3.95636627]
[1773167364232,4.02033131,86.785,86.711,3.95636627]
[1773167365234,10.368,86.792,86.748,10.373]
[1773167365734,10.368,86.785,86.739,10.374]
[1773167366036,4.02033131,86.784,86.717,3.95636627]
[1773167366827,10.369,86.781,86.717,3.95636627]
[1773167367033,4.02033131,86.784,86.717,3.95636627]
[1773167367238,10.369,86.782,86.736,10.374]
[1773167368132,4.02033131,86.784,86.743,10.373]
[1773167368731,4.02033131,86.784,86.735,10.374]
[1773167369338,14.38933131,86.784,86.735,10.374]
[1773167370234,14.38933131,86.784,86.741,10.374]
[1773167372043,14.38933131,86.784,86.733,10.375]
[1773167372545,4.02033131,86.779,86.697,3.95636627]
[1773167373138,4.02033131,86.764,86.713,10.377]
[1773167373940,4.02033131,86.764,86.72,10.376]
[1773167374344,10.371,86.763,86.72,10.376]
[1773167374736,4.02033131,86.764,86.72,10.376]
[1773167374943,14.39033131,86.772,86.726,10.375]
[1773167375142,4.02033131,86.771,86.699,3.95636627]
[1773167375344,9.11015379,86.78,86.725,3.95636627]
[1773167375544,4.02033131,86.789,86.725,3.95636627]
[1773167375843,4.02033131,86.789,86.708,3.95636627]
[1773167376049,10.371,86.761,86.708,3.95636627]
[1773167376249,4.02033131,86.779,86.708,3.95636627]
[1773167376650,14.38933131,86.777,86.731,10.375]
[1773167376948,4.02033131,86.776,86.731,10.375]
[1773167377148,4.02033131,86.776,86.708,3.95636627]
[1773167377543,10.371,86.765,86.722,10.376]
[1773167378848,10.37,86.773,86.728,10.375]
[1773167380448,14.39033131,86.773,86.728,10.375]
[1773167380856,9.11015379,86.78,86.724,3.95636627]
[1773167380857,10.369,86.78,86.724,3.95636627]
[1773167381044,4.02033131,86.779,86.71,9.11015379]
[1773167381345,4.02033131,86.779,86.711,3.95636627]
[1773167381850,4.02033131,86.777,86.711,3.95636627]
[1773167382052,4.02033131,86.775,86.711,3.95636627]
[1773167382642,4.02033131,86.775,86.724,10.376]
[1773167383351,4.02033131,86.761,86.717,10.376]
[1773167383551,4.02033131,86.761,86.711,3.95636627]
[1773167384450,10.372,86.76,86.716,10.377]
[1773167384850,10.372,86.76,86.69,9.11015379]
[1773167384851,10.372,86.753,86.708,10.378]
[1773167385048,4.02033131,86.76,86.68,3.95636627]
[1773167385350,4.02033131,86.719,86.648,3.95636627]
[1773167385555,2.88087212,86.759,86.591,37.22056003]
[1773167385556,9.11015379,86.7,86.629,3.95636627]
[1773167385756,4.02033131,86.698,86.611,3.95636627]
[1773167386057,4.02033131,86.694,86.633,10.387]
[1773167386249,4.02033131,86.692,86.611,3.95636627]
[1773167386448,4.02033131,86.69,86.611,3.95636627]
[1773167386648,4.02033131,86.688,86.611,3.95636627]
[1773167386849,4.02033131,86.674,86.611,3.95636627]
[1773167387554,4.00467289,86.672,86.611,3.95636627]
[1773167388357,4.00467289,86.67,86.615,10.389]
[1773167388749,4.00467289,86.678,86.614,10.389]
[1773167389355,3.9762156,86.666,86.604,10.39]
[1773167389853,3.9762156,86.653,86.593,14.40074283]
[1773167390048,3.9762156,86.653,86.593,4.00974283]
[1773167390648,3.9762156,86.679,86.593,4.00974283]
[1773167391359,3.9762156,86.679,86.611,4.00974283]
[1773167392257,10.382,86.668,86.613,10.389]
[1773167393053,3.9762156,86.679,86.623,4.00974283]
[1773167393460,3.9762156,86.697,86.623,4.00974283]
[1773167393954,3.9762156,86.697,86.631,4.00974283]
[1773167394455,3.9762156,86.693,86.61,9.11015379]
[1773167394658,3.9762156,86.693,86.611,4.00974283]
[1773167395057,3.9762156,86.659,86.571,4.00974283]
[1773167395455,3.9762156,86.659,86.57,9.11015379]
[1773167395456,10.384,86.658,86.599,10.391]
[1773167395753,3.9762156,86.657,86.599,10.391]
[1773167395960,3.9762156,86.657,86.592,4.00974283]
[1773167397362,10.385,86.647,86.594,10.391]
[1773167397564,3.9762156,86.646,86.594,10.391]
[1773167398364,10.385,86.645,86.594,10.391]
[1773167398762,14.3612156,86.645,86.592,4.00974283]
[1773167399466,14.3612156,86.645,86.592,14.40074283]
[1773167400263,10.384,86.654,86.598,10.391]
[1773167400467,10.384,86.654,86.52,9.11015379]
[1773167400468,3.9762156,86.663,86.599,4.00974283]
[1773167400662,3.9762156,86.658,86.603,10.39]
[1773167400966,3.9762156,86.658,86.599,4.00974283]
[1773167401468,3.9762156,86.695,86.611,4.00974283]
[1773167401663,3.9762156,86.715,86.631,4.00974283]
[1773167402366,3.9762156,86.695,86.631,4.00974283]
[1773167402759,3.9762156,86.69,86.631,4.00974283]
[1773167402966,3.9762156,86.69,86.613,4.00974283]
[1773167403465,20.749,86.736,86.589,20.784]
[1773167403466,3.9762156,86.719,86.621,4.00974283]
[1773167403865,3.9762156,86.699,86.621,4.00974283]
[1773167404067,3.9762156,86.681,86.621,14.39774283]
[1773167404366,3.9762156,86.703,86.641,4.00974283]
[1773167404769,3.9762156,86.725,86.661,4.00974283]
[1773167404967,3.9762156,86.725,86.641,4.00974283]
[1773167405167,3.9762156,86.725,86.661,10.383]
[1773167405766,10.377,86.717,86.661,10.383]
[1773167406166,3.9762156,86.745,86.661,4.00974283]
[1773167406367,3.9762156,86.745,86.64,9.11015379]
[1773167406368,3.9762156,86.745,86.681,4.00974283]
[1773167406667,3.9762156,86.745,86.634,20.773]
[1773167406668,3.9762156,86.745,86.661,4.00974283]
[1773167406873,3.9762156,86.745,86.681,4.00974283]
[1773167407364,10.373,86.744,86.681,4.00974283]
[1773167407567,3.9762156,86.743,86.681,4.00974283]
[1773167407763,3.9762156,86.743,86.661,4.00974283]
[1773167407968,3.9762156,86.743,86.672,10.382]
[1773167407969,10.375,86.728,86.672,10.382]
[1773167408163,3.9762156,86.743,86.661,4.00974283]
[1773167408573,3.9762156,86.743,86.633,20.773]
[1773167408574,10.374,86.74,86.688,10.38]
[1773167408774,3.9762156,86.743,86.689,4.00974283]
[1773167409274,3.9762156,86.742,86.688,10.38]
[1773167409874,3.9762156,86.742,86.67,4.00974283]
[1773167410667,3.9762156,86.742,86.681,4.00974283]
[1773167411069,14.3512156,86.732,86.663,4.00974283]
[1773167411271,3.9762156,86.732,86.663,4.00974283]
[1773167411468,3.9762156,86.732,86.672,10.382]
[1773167411872,3.9762156,86.732,86.663,4.00974283]
[1773167412167,3.9762156,86.759,86.663,4.00974283]
[1773167412579,3.9762156,86.759,86.681,4.00974283]
[1773167412870,3.9762156,86.759,86.662,4.00974283]
[1773167413076,3.9762156,86.739,86.662,4.00974283]
[1773167413276,10.376,86.722,86.664,10.383]
[1773167413475,10.376,86.722,86.662,4.00974283]
[1773167413872,3.9762156,86.721,86.672,10.382]
[1773167414076,3.9762156,86.719,86.644,4.00974283]
[1773167414276,3.9762156,86.719,86.63,9.11015379]
[1773167414574,10.38,86.687,86.63,9.11015379]
[1773167414779,3.9762156,86.691,86.626,4.00974283]
[1773167414978,3.9762156,86.691,86.61,9.11015379]
[1773167415167,3.9762156,86.691,86.606,4.00974283]
[1773167415573,10.382,86.669,86.616,4.00974283]
[1773167416075,10.381,86.678,86.624,10.388]
[1773167416275,3.9762156,86.699,86.616,4.00974283]
[1773167416669,10.383,86.667,86.616,14.39874283]
[1773167418072,3.9762156,86.694,86.617,4.00974283]
[1773167418483,3.9762156,86.679,86.599,4.00974283]
[1773167418681,3.9762156,86.679,86.608,10.39]
[1773167418682,10.384,86.658,86.608,10.39]
[1773167418982,3.9762156,86.699,86.599,4.00974283]
[1773167419180,3.9762156,86.699,86.628,4.00974283]
[1773167419380,3.9762156,86.699,86.605,3.99996305]
[1773167419882,3.9762156,86.699,86.633,3.99996305]
[1773167420371,3.9762156,86.699,86.64,10.386]
[1773167421078,3.671121,86.717,86.648,3.99996305]
[1773167421980,3.671121,86.709,86.621,3.99996305]
[1773167422576,3.671121,86.692,86.635,10.386]
[1773167422782,3.671121,86.692,86.621,3.99996305]
[1773167423179,10.38,86.689,86.635,10.386]
[1773167423577,3.671121,86.692,86.621,3.99996305]
[1773167423786,10.381,86.677,86.625,3.99996305]
[1773167424278,8.20948186,86.747,86.59,9.11015379]
[1773167424279,3.671121,86.676,86.605,3.99996305]
[1773167424481,3.671121,86.669,86.605,3.99996305]
[1773167425287,3.671121,86.657,86.586,3.99996305]
[1773167425475,3.671121,86.657,86.568,3.99996305]
[1773167425883,3.671121,86.636,86.568,3.99996305]
[1773167426286,3.671121,86.636,86.531,3.99996305]
[1773167426487,3.671121,86.599,86.512,3.99996305]
[1773167426785,3.671121,86.599,86.474,21.42731818]
[1773167426786,3.671121,86.579,86.502,3.99996305]
[1773167426991,3.671121,86.579,86.502,14.40196305]
[1773167427192,3.671121,86.579,86.503,3.99996305]
[1773167427590,3.671121,86.576,86.503,3.99996305]
[1773167427984,3.671121,86.559,86.481,3.99996305]
[1773167428687,3.671121,86.559,86.496,3.99996305]
[1773167429791,3.671121,86.579,86.496,3.99996305]
[1773167430094,3.671121,86.569,86.496,3.99996305]
[1773167430392,3.671121,86.567,86.496,3.99996305]
[1773167431193,3.671121,86.549,86.476,3.99996305]
[1773167431583,10.398,86.537,86.461,2.01131655]
[1773167431788,3.671121,86.529,86.457,3.99996305]
[1773167431996,3.671121,86.529,86.437,3.99996305]
[1773167432193,3.671121,86.529,86.441,3.99996305]
[1773167432386,3.671121,86.529,86.421,2.01211897]
[1773167432387,9.11015379,86.54,86.451,3.99996305]
[1773167432592,3.671121,86.548,86.451,3.99996305]
[1773167432795,3.671121,86.561,86.471,3.99996305]
[1773167433093,3.671121,86.561,86.491,3.99996305]
[1773167433291,3.671121,86.583,86.511,3.99996305]
[1773167434184,9.1490116,86.6,86.526,3.99996305]
[1773167434386,3.671121,86.602,86.526,3.99996305]
[1773167435095,3.671121,86.602,86.546,10.397]
[1773167435392,9.1490116,86.62,86.541,3.99996305]
[1773167435595,3.671121,86.623,86.556,10.396]
[1773167436494,3.671121,86.623,86.556,14.39596305]
[1773167436698,3.671121,86.623,86.565,10.395]
[1773167436891,3.671121,86.623,86.557,3.99996305]
[1773167437196,3.671121,86.623,86.56,10.395]
[1773167437592,3.671121,86.619,86.54,9.1490116]
[1773167437799,3.671121,86.611,86.537,14.39796305]
[1773167438094,3.671121,86.611,86.537,3.99996305]
[1773167438397,3.671121,86.611,86.541,3.99996305]
[1773167438884,10.389,86.61,86.542,10.397]
[1773167439089,3.671121,86.611,86.543,3.99996305]
[1773167439486,3.671121,86.611,86.438,21.42731818]
[1773167439487,3.671121,86.611,86.553,3.99996305]
[1773167440295,3.671121,86.611,86.555,10.396]
[1773167441192,3.671121,86.637,86.563,3.99996305]
[1773167441695,10.385,86.646,86.563,3.99996305]
[1773167441898,9.1490116,86.65,86.563,3.99996305]
[1773167443002,3.671121,86.647,86.579,10.393]
[1773167443202,3.671121,86.647,86.563,3.99996305]
[1773167443697,3.671121,86.647,86.541,3.99996305]
[1773167444001,3.671121,86.629,86.541,3.99996305]
[1773167444199,3.671121,86.629,86.566,3.99996305]
[1773167444400,3.671121,86.649,86.566,3.99996305]
[1773167444899,14.056121,86.649,86.583,14.39296305]
[1773167445097,3.671121,86.648,86.569,3.99996305]
[1773167445297,9.1490116,86.65,86.592,3.99996305]
[1773167445492,3.671121,86.668,86.592,3.99996305]
[1773167446002,10.382,86.676,86.592,3.99996305]
[1773167446396,10.38,86.686,86.615,10.389]
[1773167446596,3.671121,86.688,86.611,3.99996305]
[1773167447197,10.38,86.687,86.625,10.387]
[1773167447395,4.03516216,86.708,86.631,3.85316094]
[1773167447600,14.41016216,86.729,86.661,3.85316094]
[1773167447802,4.03516216,86.749,86.671,3.85316094]
[1773167448097,4.03516216,86.749,86.651,3.85316094]
[1773167448798,4.03516216,86.739,86.651,3.85316094]
[1773167449596,4.03516216,86.739,86.671,3.84740769]
[1773167449797,3.88755673,86.769,86.671,3.84740769]
[1773167450105,11.15616931,86.77,86.671,3.84740769]
[1773167450106,3.88755673,86.749,86.671,3.84740769]
[1773167450301,3.88755673,86.749,86.673,3.84740769]
[1773167451007,9.1490116,86.77,86.673,3.84740769]
[1773167451008,3.88755673,86.738,86.673,3.84740769]
[1773167451608,3.88755673,86.738,86.65,9.1490116]
[1773167451609,10.376,86.721,86.658,10.384]
[1773167451806,3.88755673,86.72,86.648,3.84740769]
[1773167452914,3.88755673,86.698,86.63,9.1490116]
[1773167453110,9.1490116,86.72,86.631,3.84740769]
[1773167453312,3.88755673,86.719,86.631,3.84740769]
[1773167454915,10.377,86.712,86.651,14.23140769]
[1773167455103,3.88755673,86.711,86.631,3.84740769]
[1773167455713,10.38,86.691,86.631,3.84740769]
[1773167455908,3.88755673,86.713,86.631,3.84740769]
[1773167456214,3.88755673,86.713,86.652,10.384]
[1773167457012,3.88755673,86.733,86.653,3.84740769]
[1773167457214,3.88755673,86.729,86.657,3.84740769]
[1773167457409,3.88755673,86.749,86.671,3.84740769]
[1773167457612,285.21,86.83,86.698,10.379]
[1773167457613,3.88755673,86.769,86.698,10.379]
[1773167457923,3.88755673,86.769,86.691,3.84740769]
[1773167458515,10.373,86.744,86.691,3.84740769]
[1773167459317,2.00674682,86.79,86.65,9.1490116]
[1773167459318,3.88755673,86.734,86.671,3.84740769]
[1773167459917,14.26255673,86.734,86.673,10.382]
[1773167460115,14.26255673,86.734,86.674,3.84740769]
[1773167460315,14.26255673,86.734,86.673,10.382]
[1773167460316,10.375,86.726,86.673,10.382]
[1773167460516,14.26255673,86.726,86.665,3.84740769]
[1773167461418,20.737,86.788,86.65,9.1490116]
[1773167461419,3.88755673,86.746,86.677,3.84740769]
[1773167462621,9.1490116,86.76,86.683,3.84740769]
[1773167462819,3.88755673,86.766,86.683,3.84740769]
[1773167463522,3.88755673,86.759,86.683,3.84740769]
[1773167463825,3.88755673,86.779,86.691,3.84740769]
[1773167464026,3.88755673,86.779,86.712,10.377]
[1773167464424,10.367,86.795,86.73,10.375]
[1773167464721,10.367,86.795,86.71,3.84740769]
[1773167464722,9.1490116,86.81,86.711,3.84740769]
[1773167464928,13.03656833,86.81,86.711,3.84740769]
[1773167465224,10.367,86.796,86.747,10.373]
[1773167465426,3.88755673,86.809,86.736,3.84740769]
[1773167465627,10.367,86.798,86.738,10.374]
[1773167465818,3.88755673,86.797,86.738,10.374]
[1773167466024,3.88755673,86.797,86.711,3.84740769]
[1773167466226,3.88755673,86.789,86.711,3.84740769]
[1773167466626,14.25755673,86.768,86.711,3.84740769]
[1773167466822,3.88755673,86.796,86.711,3.84740769]
[1773167467028,10.369,86.784,86.736,10.374]
[1773167467221,14.25655673,86.784,86.711,3.84740769]
[1773167467826,10.37,86.776,86.711,3.84740769]
[1773167468119,3.88755673,86.775,86.711,3.84740769]
[1773167468324,3.88755673,86.775,86.731,10.375]
[1773167468522,3.88755673,86.797,86.711,3.84740769]
[1773167469623,10.368,86.79,86.739,10.374]
[1773167470328,3.88755673,86.82,86.746,3.84740769]
[1773167470726,3.88755673,86.829,86.751,3.84740769]
[1773167470924,10.364,86.82,86.772,10.37]
[1773167471129,3.88755673,86.829,86.751,3.84740769]
[1773167471329,3.88755673,86.846,86.751,3.84740769]
[1773167471730,10.363,86.829,86.771,10.37]
[1773167472330,9.1490116,86.85,86.751,3.84740769]
[1773167472331,3.88755673,86.827,86.762,10.371]
[1773167472527,3.88755673,86.827,86.731,3.84740769]
[1773167472933,10.365,86.817,86.731,3.84740769]
[1773167473126,3.88755673,86.827,86.771,10.37]
[1773167473323,3.88755673,86.827,86.757,3.84740769]
[1773167473528,14.25055673,86.827,86.757,3.84740769]
[1773167474330,14.25055673,86.827,86.778,10.369]
[1773167474641,10.362,86.836,86.771,3.84740769]
[1773167474931,3.88755673,86.846,86.785,10.368]
[1773167475130,9.1490116,86.86,86.771,3.84740769]
[1773167475131,3.88755673,86.837,86.771,3.84740769]
[1773167476233,3.88755673,86.815,86.731,3.84740769]
[1773167476826,14.25255673,86.815,86.73,9.1490116]
[1773167477031,14.25255673,86.815,86.754,3.84740769]
[1773167477227,3.88755673,86.815,86.754,3.84740769]
[1773167477426,10.367,86.799,86.744,10.373]
[1773167477828,3.88755673,86.815,86.733,3.84740769]
[1773167478336,10.366,86.802,86.751,10.372]
[1773167478538,3.88755673,86.837,86.751,3.84740769]
[1773167479438,10.365,86.815,86.751,3.84740769]
[1773167479640,3.88755673,86.837,86.751,3.84740769]
[1773167480235,3.88755673,86.837,86.74,9.1490116]
[1773167480236,4.05490444,86.818,86.741,3.66797312]
[1773167480736,10.367,86.797,86.741,3.66797312]
[1773167481136,4.05490444,86.818,86.741,3.66797312]
[1773167481335,4.05490444,86.793,86.72,3.66797312]
[1773167481541,9.1490116,86.79,86.707,5.0]
[1773167481839,9.1490116,86.82,86.678,3.66797312]
[1773167481840,10.374,86.74,86.683,10.381]
[1773167482134,4.05490444,86.746,86.651,3.66797312]
[1773167482534,4.05490444,86.726,86.662,10.383]
[1773167482739,4.05490444,86.726,86.663,3.66797312]
[1773167482935,10.374,86.739,86.676,3.66797312]
[1773167483236,4.05490444,86.768,86.676,3.66797312]
[1773167483743,4.05490444,86.79,86.711,3.66797312]
[1773167484232,4.05490444,86.787,86.718,10.376]
[1773167484434,4.05490444,86.787,86.711,3.66797312]
[1773167484836,10.366,86.802,86.735,3.66797312]
[1773167485837,4.05490444,86.812,86.74,3.66797312]
[1773167485838,14.41990444,86.812,86.74,3.66797312]
[1773167486037,2.8801488,86.864,86.74,3.66797312]
[1773167486038,4.05490444,86.832,86.74,3.66797312]
[1773167486234,4.05490444,86.832,86.767,10.371]
[1773167486436,4.05490444,86.832,86.71,9.1490116]
[1773167486437,4.05490444,86.832,86.768,3.66797312]
[1773167486637,4.05490444,86.832,86.745,3.66797312]
[1773167486839,10.369,86.78,86.711,3.66797312]
[1773167487236,2.8800393,86.819,86.673,20.764]
[1773167487237,4.05490444,86.818,86.721,3.66797312]
[1773167487439,4.05490444,86.818,86.742,3.66797312]
[1773167487639,4.05490444,86.839,86.761,3.66797312]
[1773167488644,4.05490444,86.829,86.741,3.66797312]
[1773167489243,4.05490444,86.806,86.741,3.66797312]
[1773167489944,4.05490444,86.806,86.72,9.1490116]
[1773167489945,4.05490444,86.806,86.722,10.376]
[1773167490243,4.05490444,86.806,86.722,14.04397312]
[1773167490639,10.37,86.773,86.722,3.66797312]
[1773167490839,4.05490444,86.787,86.722,3.66797312]
[1773167491239,4.05490444,86.787,86.725,3.66797312]
[1773167491642,10.367,86.796,86.733,3.66797312]
[1773167491844,4.05490444,86.809,86.741,3.66797312]
[1773167492233,10.366,86.807,86.741,3.66797312]
[1773167492436,4.05490444,86.809,86.72,12.81698472]
[1773167492636,10.367,86.796,86.721,3.66797312]
[1773167492839,4.05490444,86.809,86.74,3.66797312]
[1773167493036,4.05490444,86.799,86.715,3.66797312]
[1773167493241,10.368,86.787,86.72,3.66797312]
[1773167493442,4.05490444,86.769,86.672,3.66797312]
[1773167493946,10.372,86.752,86.695,10.379]
[1773167494148,4.05490444,86.769,86.672,3.66797312]
[1773167494642,10.374,86.735,86.675,14.04897312]
[1773167494946,4.05490444,86.767,86.676,3.66797312]